[Event "2nd Serbia Open Masters 2022"]
[Site "Novi Sad"]
[Date "2022.06.30"]
[Round "3.27"]
[White "Fernandez, Daniel Howard"]
[Black "Nikolovski, Nikola"]
[Result "1-0"]
[ECO "C02"]
[WhiteElo "2503"]
[BlackElo "2372"]
[Annotator "TA"]
[PlyCount "95"]
[EventDate "2022.06.28"]
[EventType "swiss"]
[EventCountry "SRB"]
[SourceTitle "playchess.com"]
[Source "ChessBase"]
[SourceQuality "1"]
[TimeControl "40/5400+30:900+30"]

{[%evp 9,95,0,20,-30,2,-72,-14,-35,-2,-25,-30,-22,-17,-41,-12,-19,-6,-4,33,0,0,0,10,-14,-8,-11,16,-14,0,0,20,12,19,0,0,0,12,10,50,39,79,-8,63,63,95,91,101,91,106,76,87,41,71,77,64,34,308,281,304,313,303,258,225,187,368,410,405,404,435,394,394,378,463,434,731,673,683,666,617,626,1030,937,1125,872,1218,1132,934,741]} 1. e4 {[%emt 0:04:14][%cal Be2e4,Be4e5][%mdl 32]} e6 {[%emt 0:01:44]} 2. d4 {[%emt 0:00:12]} d5 {[%emt 0:00:10]} 3. e5 {[%emt 0:01:09]} c5 {[%emt 0:00:46]} 4. c3 {[%emt 0:00:02]} Nc6 {[%emt 0:00:24]} 5. Nf3 {[%emt 0:00:03]} Bd7 {[%emt 0:01:39]} 6. h4 {[%emt 0:16:00] [#] C02: French: Advance Variation.} (6. Be2 $142) 6... f6 $146 {[%emt 0:06:53]} ({Predecessor:} 6... Nge7 7. g4 Qc7 8. Na3 cxd4 9. cxd4 Nc8 10. Nb5 Qa5+ 11. Bd2 Bb4 12. a3 Bxd2+ 13. Qxd2 Qxd2+ 14. Nxd2 N8e7 15. Nc7+ {1-0 (15) Kuttner,J (914)-Hickl,N (1232) IECC email 2018}) 7. Na3 {[%emt 0:09:37]} (7. Bd3 $11 {keeps the balance.}) 7... fxe5 {[%emt 0:16:09]} (7... cxd4 $17 8. Nxd4 Nxe5) 8. dxe5 $11 {[%emt 0:04:42] The position is equal.} a6 {[%emt 0:11:06]} 9. c4 {[%emt 0:06:20]} d4 {[%emt 0:01:26]} 10. Nc2 {[%emt 0:01:00]} Qc7 {[%emt 0:01:29]} 11. Bf4 {[%emt 0:05:45]} Nh6 {[%emt 0:02:07]} 12. Bd3 {[%emt 0:02:55]} O-O-O {[%emt 0:05:45]} 13. Qe2 {[%emt 0:00:18]} Nf7 {[%emt 0:06:42]} 14. h5 {[%emt 0:03:50]} Be7 {[%emt 0:01:35]} 15. O-O-O {[%emt 0:00:34]} Rdf8 {[%emt 0:03:19]} 16. g3 {[%emt 0:04:37]} Kb8 {[%emt 0:02:48]} 17. Kb1 {[%emt 0:00:19]} Ka7 {[%emt 0:00:30]} 18. Nce1 {[%emt 0:00:13]} Rb8 {[%emt 0:02:03][%cal Ob7b5]} 19. Rc1 {[%emt 0:01:42]} Nb4 {[%emt 0:07:16]} 20. Be4 $1 {[%emt 0:00:03]} b5 {[%emt 0:01:21]} 21. Nd3 {[%emt 0:09:21]} Nxd3 {[%emt 0:07:10]} 22. Qxd3 {[%emt 0:01:18][%cal Of3d4]} Qb6 {[%emt 0:01:35] aiming for ...bxc4.} 23. Nd2 {[%emt 0:04:23]} h6 {[%emt 0:01:13]} 24. cxb5 {[%emt 0:03:16]} axb5 {[%emt 0:03:50]} 25. Rc3 {[%emt 0:05:49]} b4 {[%emt 0:03:54]} (25... Bc8 $1 $11 26. Rb3 (26. Ra3+ Ba6 $15) 26... Ba6) 26. Rc2 $14 {[%emt 0:00:34]} Rhc8 {[%emt 0:05:06]} 27. b3 {[%emt 0:02:47]} Bb5 {[%emt 0:01:38]} 28. Nc4 {[%emt 0:00:09]} Qa6 {[%emt 0:00:32]} 29. Kb2 {[%emt 0:01:47]} Nd8 {[%emt 0:03:56]} 30. Ra1 {[%emt 0:00:18] 0x0.00166fad53aadp-1022s more active pieces. The black rooks are badly placed.} (30. Rhc1 $1 $16) 30... Bxc4 {[%emt 0:00:16]} 31. Rxc4 {[%emt 0:00:30] a3 is the strong threat.} Qa3+ {[%emt 0:00:34]} 32. Kb1 {[%emt 0:00:58] Hoping for Bc1.} (32. Kc2 $5 {[%cal Rf4c1]}) 32... Kb6 $2 {[%emt 0:00:04][%mdl 8192] This costs Black the game.} (32... Bg5 $1 $14) 33. Bc1 $18 {[%emt 0:00:18] This bishop pair is nice.} Qa6 {[%emt 0:00:19]} 34. a3 {[%emt 0:00:18]} bxa3 {[%emt 0:00:32]} 35. Rxa3 {[%emt 0:00:49]} Qb5 {[%emt 0:00:05]} 36. Bg2 {[%emt 0:04:13]} Nc6 $2 {[%emt 0:00:36]} (36... Rc7 37. Bf1 Ra7) 37. Qg6 $1 {[%emt 0:03:53][%csl LRe6,LRg7]} Ra8 {[%emt 0:00:38] [#]} 38. Rxa8 {[%emt 0:01:25]} Qxb3+ {[%emt 0:01:33]} 39. Bb2 {[%emt 0:00:03][%cal Og6e6]} Rxa8 {[%emt 0:00:06]} 40. Qxe6 {[%emt 0:00:00] The board is on fire.} Qd1+ {[%emt 0:00:00]} 41. Rc1 {[%emt 0:00:32] White is clearly winning.} Qd3+ {[%emt 0:13:01]} (41... Qa4 $142 42. Bxc6 Qxc6 43. Qxe7 Qd5 44. Qd6+ (44. Qxg7 d3 $11) 44... Qxd6 45. exd6 Kb5) 42. Rc2 {[%emt 0:00:01]} Qb5 {[%emt 0:03:20]} 43. Bxc6 {[%emt 0:00:08]} Qxc6 {[%emt 0:00:02]} 44. Qxe7 {[%emt 0:00:07]} d3 {[%emt 0:00:06] [#]} 45. Rc3 {[%emt 0:00:17]} d2 {[%emt 0:00:58]} 46. Kc2 {[%emt 0:03:23]} Qe4+ {[%emt 0:01:19]} 47. Kxd2 {[%emt 0:00:03]} Qd4+ {[%emt 0:00:17]} 48. Kc1 {[%emt 0:00:15] Weighted Error Value: White=0.19 (very precise) /Black=0.39} 1-0

[Event "2nd Serbia Open Masters 2022"]
[Site "Novi Sad"]
[Date "2022.06.30"]
[Round "3.28"]
[White "Harshavardhan G B"]
[Black "Aditya Mittal"]
[Result "0-1"]
[ECO "D43"]
[WhiteElo "2367"]
[BlackElo "2490"]
[Annotator "TA"]
[PlyCount "110"]
[EventDate "2022.06.28"]
[EventType "swiss"]
[EventCountry "SRB"]
[SourceTitle "playchess.com"]
[Source "ChessBase"]
[SourceQuality "1"]
[TimeControl "40/5400+30:900+30"]

{[%evp 12,109,43,43,52,56,60,56,50,56,43,35,36,33,29,25,22,29,13,22,25,0,35,33,91,62,60,58,70,70,71,63,111,87,89,84,134,22,20,0,-8,-9,-9,-8,-13,-12,0,-13,-8,-8,-8,-119,-129,-126,-128,-119,-127,-155,-145,-145,-116,-118,-104,-126,0,-119,-121,-146,-146,-212,-236,-552,-527,-1091,-1065,-1064,-1023,-5106,-5106,-29978,-29980,-29986,-29987,-29989,-29989,-29991,-29990,-29990,-29991,-29992,-29993,-29993,-29994,-29996,-29997,-29997,-29998,-29998,-29999,-29999]} 1. d4 {[%emt 0:00:30]} d5 {[%emt 0:00:06]} 2. c4 {[%emt 0:00:46]} c6 {[%emt 0:00:05]} 3. Nf3 {[%emt 0:00:43]} Nf6 {[%emt 0:00:04]} 4. Nc3 {[%emt 0:00:04]} e6 {[%emt 0:00:03]} 5. Bg5 {[%emt 0:00:08]} h6 {[%emt 0:00:05]} 6. Bh4 {[%emt 0:00:05]} g5 {[%emt 0:00:03]} 7. Bg3 {[%emt 0:00:05]} Ne4 {[%emt 0:00:03] D43: Semi-Slav: 5 Bg5 h6.} 8. e3 {[%emt 0:00:32][%cal Be2e3,Be3e4,Be4d5][%mdl 32]} Nxg3 {[%emt 0:00:09]} 9. hxg3 {[%emt 0:00:06]} Nd7 {[%emt 0:00:03] White is slightly better.} 10. Qc2 {[%emt 0:00:46]} Bg7 {[%emt 0:00:08]} 11. O-O-O {[%emt 0:00:47]} Qe7 {[%emt 0:01:45]} 12. e4 {[%emt 0:08:44]} g4 {[%emt 0:10:31] [#]} 13. Nd2 $146 {[%emt 0:01:23][%cal Rc4d5]} ({Predecessor:} 13. Nh4 dxe4 14. Nxe4 Nf6 15. c5 Nxe4 16. Qxe4 Qg5+ 17. Kb1 Bd7 18. Be2 f5 19. Qc2 {½-½ (37) Bykhovsky,A (2496)-Grischuk,A (2777) Chess.com INT 2020}) 13... e5 {[%emt 0:06:08]} 14. exd5 {[%emt 0:07:18] Strongly threatening Re1.} exd4 {[%emt 0:00:13]} 15. Ne2 {[%emt 0:00:08][%cal Bc3e2,Be2f4,Bf4d5,Bd5c7][%mdl 32]} d3 {[%emt 0:16:00]} 16. Qxd3 {[%emt 0:00:13]} Nc5 {[%emt 0:00:14]} 17. Qa3 {[%emt 0:06:06] And now Rh5 would win.} b5 {[%emt 0:12:25]} (17... Bf5 $1 $14 18. Nf4 h5) 18. Nf4 {[%emt 0:10:26]} (18. dxc6 $6 Bxb2+ 19. Kxb2 Na4+ 20. Kb3 Nc5+ 21. Kc3 Na4+ 22. Kb3 Nc5+ 23. Kc3 Na4+ 24. Kb3 $11) 18... b4 {[%emt 0:02:00]} 19. Qe3 {[%emt 0:01:17]} Qxe3 {[%emt 0:08:52]} 20. fxe3 {[%emt 0:00:05]} cxd5 {[%emt 0:00:43]} 21. Nxd5 {[%emt 0:09:55]} Rb8 {[%emt 0:00:46]} (21... O-O $14) 22. Nc7+ {[%emt 0:05:04]} Ke7 {[%emt 0:06:04]} 23. Nd5+ {[%emt 0:04:06]} Kf8 {[%emt 0:01:54]} (23... Ke8 $142) 24. Be2 {[%emt 0:05:29]} ({White should try} 24. Rh5 $16) 24... h5 $1 $11 {[%emt 0:07:51]} 25. Rdf1 {[%emt 0:02:33]} b3 {[%emt 0:02:03]} 26. axb3 {[%emt 0:01:24]} Nxb3+ {[%emt 0:00:13]} 27. Nxb3 {[%emt 0:00:07]} Rxb3 {[%emt 0:00:02]} 28. Nc3 {[%emt 0:10:00]} Rh6 {[%emt 0:05:43][%mdl 1024] Black has compensation.} 29. Kc2 {[%emt 0:04:51]} Rhb6 {[%emt 0:01:41]} 30. Nd1 {[%emt 0:00:05]} Bb7 {[%emt 0:04:16] White must now prevent ...Be4+.} 31. Rf4 {[%emt 0:05:16] [#] Prevents Be4+.} (31. c5 $1 $11 {keeps the balance.} Rxb2+ 32. Nxb2 Rxb2+ 33. Kd1) 31... Be5 $1 $17 {[%emt 0:01:23] 0x0.001b69ecc84edp-1022s more active pieces. This bishop pair is nice.} (31... Bxb2 $2 32. c5 Be5 33. cxb6 $18) ({Resist} 31... Bxg2 32. Rxh5 Rxb2+ 33. Nxb2 Rxb2+ 34. Kd1 Rb1+ 35. Kd2 Rb2+ 36. Ke1 $16) 32. Rxh5 {[%emt 0:02:49]} Bxf4 {[%emt 0:00:08]} 33. gxf4 {[%emt 0:00:05]} Be4+ {[%emt 0:00:56]} 34. Kc1 {[%emt 0:06:54]} f5 {[%emt 0:03:19]} (34... Bxg2 35. Bxg4 Rg6 36. Bf5 $11) 35. g3 {[%emt 0:00:06]} Kg7 {[%emt 0:02:00]} 36. Rg5+ {[%emt 0:00:07]} Kf6 {[%emt 0:02:06]} 37. Rh5 {[%emt 0:02:24]} Kg7 {[%emt 0:00:45] Inhibits Rh6.} 38. Rg5+ $1 {[%emt 0:00:06] [#]} Kh6 $1 {[%emt 0:03:25] Black keeps a firm grip on the game.} 39. Rg8 {[%emt 0:00:20]} Bf3 {[%emt 0:04:00]} 40. Bxf3 {[%emt 0:00:00]} (40. c5 $17 Rc6 41. Kc2) 40... gxf3 {[%emt 0:00:00][%mdl 4096] Endgame KRR-KRN} 41. Kc2 $2 {[%emt 0:01:17]} (41. Rh8+ {is a better chance.} Kg6 42. Rh2) 41... Kh7 $19 {[%emt 0:02:46]} ({Stronger than} 41... f2 42. Rh8+ Kg6 43. Rh1 $17) 42. Rg5 {[%emt 0:00:09] [#]} Rxb2+ $3 {[%emt 0:00:55][%mdl 576] Deflection, Promotion} 43. Nxb2 {[%emt 0:01:33] KRN-KR} f2 {[%emt 0:00:04]} 44. c5 {[%emt 0:00:18]} Rh6 {[%emt 0:00:13]} 45. Nd3 {[%emt 0:00:39]} f1=Q {[%emt 0:00:07] Black mates.} 46. Kc3 {[%emt 0:00:09]} Ra6 {[%emt 0:00:39]} 47. Ne5 {[%emt 0:00:18]} Qc1+ {[%emt 0:01:54]} 48. Kb4 {[%emt 0:00:41]} Qa3+ {[%emt 0:01:26]} 49. Kc4 {[%emt 0:00:06]} Qa2+ {[%emt 0:00:02]} 50. Kd4 {[%emt 0:00:14]} Ra4+ {[%emt 0:00:32]} 51. Kc3 {[%emt 0:00:07]} Qa3+ {[%emt 0:01:18]} 52. Kd2 {[%emt 0:00:07]} Qb2+ {[%emt 0:00:07]} 53. Kd3 {[%emt 0:00:04]} Qb3+ {[%emt 0:00:04]} 54. Ke2 {[%emt 0:00:05]} Ra2+ {[%emt 0:00:04]} 55. Kf3 {[%emt 0:00:05]} Qd1# {[%emt 0:00:04] Weighted Error Value: White=0.57/Black=0.08 (flawless)} 0-1

[Event "2nd Serbia Open Masters 2022"]
[Site "Novi Sad"]
[Date "2022.06.30"]
[Round "3.29"]
[White "Kochavi, Ori"]
[Black "Song, Raymond"]
[Result "0-1"]
[ECO "B90"]
[WhiteElo "2365"]
[BlackElo "2485"]
[Annotator "TA"]
[PlyCount "120"]
[EventDate "2022.06.28"]
[EventType "swiss"]
[EventCountry "SRB"]
[SourceTitle "playchess.com"]
[Source "ChessBase"]
[SourceQuality "1"]
[TimeControl "40/5400+30:900+30"]

{[%evp 12,120,10,10,29,11,7,7,4,8,20,19,23,7,28,21,14,13,16,0,2,0,0,0,0,-29,-24,-28,-21,-33,0,0,0,-16,0,-30,-26,-32,-27,-48,0,-22,11,13,70,0,5,0,0,0,0,10,0,-115,-129,-212,-184,-251,-242,-251,-251,-251,-251,-239,-221,-251,-251,-251,-251,-237,-242,-148,-49,-49,-49,-49,-50,-52,-53,-52,0,-50,0,-84,-66,-77,-75,-178,0,0,0,-77,-77,-712,-660,-29974,-29975,-29975,-29976,-29976,-29977,-29976,-29975,-6607,-5987,-6721,-5953,-29983,-29959,-5102,-4943]} 1. e4 {[%emt 0:00:17]} c5 {[%emt 0:00:06]} 2. Nf3 {[%emt 0:00:02]} d6 {[%emt 0:00:05]} 3. d4 {[%emt 0:00:02]} cxd4 {[%emt 0:00:05]} 4. Nxd4 {[%emt 0:00:03]} Nf6 {[%emt 0:00:07]} 5. Nc3 {[%emt 0:00:02]} a6 {[%emt 0:00:06]} 6. h3 {[%emt 0:00:02]} e5 {[%emt 0:00:07]} 7. Nde2 {[%emt 0:00:02]} h5 {[%emt 0:00:07] B90: Sicilian Najdorf: Unusual White 6th moves, 6 Be3 Ng4 and 6 Be3 e5.} 8. Bg5 {[%emt 0:00:03]} Be6 {[%emt 0:00:08]} 9. Ng1 {[%emt 0:00:06]} Nbd7 {[%emt 0:07:34] The position is equal.} 10. Nf3 {[%emt 0:00:11]} Rc8 {[%emt 0:00:34]} 11. Bd3 {[%emt 0:00:31]} Be7 {[%emt 0:01:16] [#]} 12. O-O $146 {[%emt 0:00:43]} ({Predecessor:} 12. Be3 d5 13. exd5 Bxd5 14. Nxd5 Nxd5 15. Bd2 Nb4 16. Bxb4 Bxb4+ 17. c3 Be7 18. Bf5 {½-½ (46) Grischuk,A (2775)-Donchenko,A (2641) Struga 2021}) 12... O-O {[%emt 0:00:19]} 13. Qe2 {[%emt 0:00:05]} b5 {[%emt 0:02:53]} 14. a3 {[%emt 0:00:36]} Nb6 {[%emt 0:00:39]} 15. Rfd1 {[%emt 0:04:31]} Nfd7 {[%emt 0:03:43]} 16. Bxe7 {[%emt 0:03:04]} Qxe7 {[%emt 0:00:03]} 17. Nd2 {[%emt 0:23:34][%cal Bf3d2,Bd2f1,Bf1e3][%mdl 32]} g6 {[%emt 0:02:45]} 18. Nf1 {[%emt 0:07:19]} Nc5 {[%emt 0:01:55]} 19. Ne3 {[%emt 0:02:34]} Qg5 {[%emt 0:00:57]} 20. Qf3 {[%emt 0:05:18]} f5 {[%emt 0:02:00]} 21. exf5 {[%emt 0:13:38]} gxf5 {[%emt 0:00:35]} 22. Be2 {[%emt 0:00:03]} Rcd8 {[%emt 0:08:33]} 23. Ned5 {[%emt 0:15:06]} Nxd5 {[%emt 0:00:09]} 24. Nxd5 {[%emt 0:00:04]} h4 $1 {[%emt 0:01:36]} 25. b4 {[%emt 0:07:18]} Na4 {[%emt 0:07:19]} 26. Nc7 {[%emt 0:00:04][%csl LRa6,LRe6]} Bf7 {[%emt 0:03:11]} 27. Qc6 {[%emt 0:00:04]} (27. Nxa6 e4 28. Qe3 Qxe3 29. fxe3 Nc3 $17) 27... Qe7 {[%emt 0:11:24]} ({Black should play} 27... e4 $11) 28. Nxa6 {[%emt 0:00:04]} (28. Nd5 $1 $14 Bxd5 29. Rxd5 (29. Qxd5+ Kh7 $11)) 28... d5 {[%emt 0:00:08][%cal Bd6d5,Bd5d4,Bd4d3][%mdl 32]} 29. Bxb5 {[%emt 0:04:39]} Rd6 {[%emt 0:05:22]} 30. Qc7 {[%emt 0:00:03]} Qxc7 {[%emt 0:00:03]} 31. Nxc7 {[%emt 0:00:05]} Nc3 {[%emt 0:00:03]} 32. Rd3 {[%emt 0:00:15]} (32. Re1 $11 Rc8 33. Rxe5 $1) 32... d4 $17 {[%emt 0:00:06]} 33. a4 {[%emt 0:00:21]} (33. Ba6 $17) 33... Rc8 $19 {[%emt 0:03:40]} 34. Na6 {[%emt 0:00:12]} (34. Rxc3 $142 dxc3 35. Na6) 34... Nxb5 {[%emt 0:01:30]} 35. axb5 {[%emt 0:00:05] And now Nc5 would win.} Rxc2 {[%emt 0:00:05]} 36. Nc5 {[%emt 0:00:41]} e4 $1 {[%emt 0:03:25]} 37. Rdd1 {[%emt 0:00:03]} d3 $1 {[%emt 0:06:11]} 38. Ra6 {[%emt 0:02:26]} Rd4 {[%emt 0:00:14]} 39. b6 {[%emt 0:05:50] Hoping for Ra8+.} Rxb4 {[%emt 0:00:05]} 40. b7 {[%emt 0:00:00]} Kg7 {[%emt 0:00:00]} ({Inferior is} 40... Rxc5 41. Ra8+ Kg7 42. b8=Q Rxb8 43. Rxb8 $17) 41. Ra8 {[%emt 0:01:44][%cal Oc5e4]} Rcb2 {[%emt 0:03:56]} ({Black should try} 41... Rxc5 $17 42. b8=Q Rxb8 43. Rxb8 Bh5) 42. Rd8 $15 {[%emt 0:07:29]} Rb5 {[%emt 0:10:05]} 43. f3 $1 {[%emt 0:00:04]} Rxc5 {[%emt 0:02:09]} 44. b8=Q {[%emt 0:00:07]} Rxb8 {[%emt 0:00:04]} 45. Rxb8 {[%emt 0:00:03][%mdl 4096] Endgame KRR-KRB} Rc2 {[%emt 0:14:26]} (45... e3 $15 46. Rxd3 Rc1+ 47. Kh2 e2) 46. Rb7 {[%emt 0:05:34]} (46. fxe4 $11 fxe4 47. Rb7) 46... Kg6 {[%emt 0:00:24]} (46... e3 $1 $15 47. Rxd3 Rc1+ 48. Kh2 e2) 47. Rd7 {[%emt 0:09:09]} (47. fxe4 $11 fxe4 48. Rf1) 47... Bc4 {[%emt 0:01:06] White must now prevent ...e3. Black is more active.} 48. fxe4 {[%emt 0:01:25]} fxe4 {[%emt 0:00:04]} 49. Re1 {[%emt 0:00:56]} (49. Re7 $17 {was the only chance.} Re2 50. Rc7) 49... Be6 $2 {[%emt 0:09:34]} ({Better is} 49... Kf5 $19 {aiming for ...d2.} 50. Rd4 d2 51. Rexe4 d1=Q+ 52. Rxd1 Kxe4) 50. Rd4 $11 {[%emt 0:00:56]} ({Don't go for} 50. Rd6 $2 Kf5 51. Rd4 d2 52. Rexe4 d1=Q+ 53. Rxd1 Kxe4 $19) 50... Bf5 {[%emt 0:00:24]} 51. Kf1 {[%emt 0:00:34]} (51. Rf1 $11) 51... Kg5 {[%emt 0:00:56][%mdl 1024] ...Kf4 is the strong threat. Black has strong compensation.} 52. Re3 $2 {[%emt 0:00:28][%mdl 8192] [#] Loses the game.} (52. Rd5 $17 Kf4 53. Kg1) 52... Rc3 $1 $19 {[%emt 0:01:21]} 53. Kf2 {[%emt 0:01:06] [#]} Kf4 {[%emt 0:00:27]} 54. Re1 {[%emt 0:00:23]} Rc2+ {[%emt 0:00:04]} 55. Kf1 {[%emt 0:00:02]} d2 {[%emt 0:01:32]} 56. Rd1 {[%emt 0:00:07]} Ke3 {[%emt 0:00:04]} 57. Ra4 {[%emt 0:00:09]} Rc3 {[%emt 0:02:49]} (57... Rc1 58. Ra3+ Kf4 59. Ke2 Rxd1 60. Kxd1) 58. Ra2 {[%emt 0:00:16]} Rd3 {[%emt 0:00:05] ( -> ...Bd7)} 59. g4 {[%emt 0:01:01]} hxg3 {[%emt 0:00:14]} 60. Kg2 {[%emt 0:00:02]} Be6 {[%emt 0:00:40] Weighted Error Value: White=0.64/Black=0.16 (very precise)} 0-1

[Event "2nd Serbia Open Masters 2022"]
[Site "Novi Sad"]
[Date "2022.06.30"]
[Round "3.30"]
[White "Pranav Vijay"]
[Black "Tsolakidou, Stavroula"]
[Result "1-0"]
[ECO "B94"]
[WhiteElo "2265"]
[BlackElo "2358"]
[Annotator "TA"]
[PlyCount "73"]
[EventDate "2022.06.28"]
[EventType "swiss"]
[EventCountry "SRB"]
[SourceTitle "playchess.com"]
[Source "ChessBase"]
[SourceQuality "1"]
[TimeControl "40/5400+30:900+30"]

{[%evp 12,73,18,8,12,-18,-15,-17,33,29,34,42,50,30,24,21,76,89,81,50,54,50,48,48,46,19,58,45,113,102,106,93,102,105,153,139,212,175,333,328,312,333,342,287,275,244,477,483,450,441,603,647,686,681,818,810,779,769,1142,1142,29993,29994,29994,29995]} 1. e4 {[%emt 0:00:03]} c5 {[%emt 0:02:57]} 2. Nf3 {[%emt 0:00:06]} d6 {[%emt 0:00:09]} 3. d4 {[%emt 0:00:05]} cxd4 {[%emt 0:00:07]} 4. Nxd4 {[%emt 0:00:05]} Nf6 {[%emt 0:00:08]} 5. Nc3 {[%emt 0:00:04]} a6 {[%emt 0:00:04]} 6. Bg5 {[%emt 0:00:05]} Nbd7 {[%emt 0:00:34]} 7. Bc4 {[%emt 0:00:12]} Qb6 {[%emt 0:00:34] B94: Sicilian Najdorf: 6 Bg5 Nbd7.} 8. O-O {[%emt 0:01:32]} Qc5 {[%emt 0:01:02]} 9. Bd5 {[%emt 0:01:57]} g6 {[%emt 0:00:41]} (9... e6 $11) 10. Qd2 $14 {[%emt 0:17:34]} Bg7 {[%emt 0:00:31]} 11. Rad1 {[%emt 0:02:18]} O-O {[%emt 0:01:19] [#]} 12. Bh6 $146 {[%emt 0:00:38]} ({Predecessor:} 12. Rfe1 Nb6 13. Bh6 Bg4 14. Bxg7 Kxg7 15. f3 Bd7 16. Kh1 Rab8 17. Bb3 Rbc8 18. f4 {½-½ (44) Bobras,P (2520)-Vorobiov,E (2574) Czech Republic 2015}) 12... Nb6 {[%emt 0:14:12]} 13. Bb3 {[%emt 0:08:02]} Ng4 {[%emt 0:11:41]} (13... Bg4 $11) 14. Bxg7 $16 {[%emt 0:03:19]} Kxg7 {[%emt 0:00:05]} 15. Nd5 {[%emt 0:05:48]} Nxd5 {[%emt 0:03:53]} 16. exd5 {[%emt 0:00:15]} Nf6 {[%emt 0:00:50]} 17. Rfe1 {[%emt 0:03:47]} Re8 $1 {[%emt 0:00:56]} (17... Bg4 18. Rxe7 Ng8 19. Rxb7 $1 $16) 18. h3 {[%emt 0:04:38]} Bd7 {[%emt 0:01:59]} 19. Qf4 {[%emt 0:06:27]} a5 {[%emt 0:17:15] [#] White leaves nothing to chance now.} (19... b5 $14) 20. a4 $1 {[%emt 0:03:48][%cal Ba2a4,Ba4b5][%mdl 32] White is more active.} Kg8 {[%emt 0:05:58]} 21. Qh4 {[%emt 0:12:17]} Rac8 {[%emt 0:11:32]} 22. Rd3 {[%emt 0:02:09]} Qb4 {[%emt 0:12:58]} (22... b5 $142) 23. c3 {[%emt 0:00:11]} Qc5 {[%emt 0:00:04]} (23... Qb6 $16 24. Rde3 Qd8) 24. Qh6 {[%emt 0:02:34]} b5 $2 {[%emt 0:02:16]} (24... Qc7 {was called for.} 25. Rde3 Qd8) 25. axb5 $18 {[%emt 0:00:38]} a4 {[%emt 0:05:39]} 26. Ba2 {[%emt 0:00:39]} ({Much less strong is} 26. Bxa4 $6 Qc4 $18) 26... Kh8 {[%emt 0:03:07]} 27. c4 {[%emt 0:02:46]} Qb4 {[%emt 0:00:51]} 28. Qd2 $40 {[%emt 0:03:13][%mdl 128] Black is in trouble.} Rxc4 {[%emt 0:00:27]} (28... Qxd2 29. Rxd2 Kg7) 29. Bxc4 {[%emt 0:00:50]} Qxc4 {[%emt 0:00:04]} 30. Nc6 {[%emt 0:00:28][%cal Bd4c6,Bc6e7,Be7d5][%mdl 32]} Qxb5 {[%emt 0:02:26]} 31. Nxe7 {[%emt 0:00:12] Hoping for Qc3.} Kg7 {[%emt 0:00:46]} 32. Rf3 {[%emt 0:00:14]} Nxd5 {[%emt 0:00:45]} 33. Qd4+ {[%emt 0:01:26]} ({Not} 33. Nxd5 Rxe1+ 34. Qxe1 Qxd5 35. Qc3+ (35. Qe7 Bc6 $16) 35... Qe5 $18) 33... f6 {[%emt 0:00:24] [#]} 34. Re4 $1 {[%emt 0:00:10]} Bc6 {[%emt 0:00:43]} (34... Qc5 35. Nxd5) 35. Nxd5 {[%emt 0:00:45]} Rxe4 {[%emt 0:00:25]} 36. Qxf6+ {[%emt 0:00:14]} Kh6 {[%emt 0:00:06]} 37. Qf8+ {[%emt 0:00:05] Weighted Error Value: White=0.08 (flawless) /Black=0.51} 1-0

[Event "2nd Serbia Open Masters 2022"]
[Site "Novi Sad"]
[Date "2022.06.30"]
[Round "3.31"]
[White "Hristodoulou, Panagiotis"]
[Black "Karthik Venkataraman"]
[Result "1/2-1/2"]
[ECO "B87"]
[WhiteElo "2328"]
[BlackElo "2480"]
[Annotator "TA"]
[PlyCount "46"]
[EventDate "2022.06.28"]
[EventType "swiss"]
[EventCountry "SRB"]
[SourceTitle "playchess.com"]
[Source "ChessBase"]
[SourceQuality "1"]
[TimeControl "40/5400+30:900+30"]

{[%evp 19,46,0,0,-18,-3,-21,7,-31,-27,-35,37,0,16,-6,14,-4,6,0,25,0,0,0,25,0,0,0,27,0,0]} 1. e4 {[%emt 0:05:44]} c5 {[%emt 0:00:08]} 2. Nf3 {[%emt 0:00:21]} d6 {[%emt 0:00:06]} 3. d4 {[%emt 0:00:12]} cxd4 {[%emt 0:00:04]} 4. Nxd4 {[%emt 0:00:06]} Nf6 {[%emt 0:00:03]} 5. Nc3 {[%emt 0:00:20]} a6 {[%emt 0:00:06]} 6. Bc4 {[%emt 0:00:11]} e6 {[%emt 0:00:26]} 7. Be3 {[%emt 0:00:07]} Be7 {[%emt 0:03:37]} 8. Bb3 {[%emt 0:00:33]} b5 {[%emt 0:00:27]} 9. a3 {[%emt 0:00:16]} O-O {[%emt 0:01:36]} 10. Qe2 {[%emt 0:01:12]} Bb7 {[%emt 0:02:12]} 11. f3 {[%emt 0:00:43] B87: Sicilian Scheveningen/Najdorf: 6 Bc4, with early ...b5.} Nc6 {[%emt 0:00:05]} 12. O-O-O {[%emt 0:00:17]} Qa5 {[%emt 0:12:58]} 13. Qe1 {[%emt 0:07:22]} Qc7 {[%emt 0:01:02]} 14. Kb1 {[%emt 0:03:55] [#]} Nd7 $146 {[%emt 0:03:27]} ({Black should try} 14... Nxd4 $15 15. Bxd4 Rfe8) ({Predecessor:} 14... Nxd4 15. Bxd4 Bc6 16. g4 a5 17. g5 Nh5 18. Ne2 b4 19. Qh4 a4 20. Ba2 b3 21. cxb3 axb3 22. Bxb3 {0-1 (49) Kobalia,M (2430)-Sakaev,K (2570) St Petersburg 1995}) 15. h4 {[%emt 0:04:28][%cal Od4e6]} Nc5 {[%emt 0:06:15]} 16. Ba2 {[%emt 0:09:46]} Rab8 {[%emt 0:01:40]} 17. Bg5 {[%emt 0:04:45]} Rfe8 {[%emt 0:07:49]} 18. Qg3 {[%emt 0:16:41]} Bf8 {[%emt 0:01:39] [#]} 19. Nf5 $1 {[%emt 0:15:11]} exf5 {[%emt 0:18:24]} 20. Nd5 $1 {[%emt 0:00:11]} Qc8 {[%emt 0:00:42] ...Ne5 is the strong threat.} 21. Nb6 {[%emt 0:00:12][%mdl 1024] White has compensation.} (21. Nf6+ $5 Kh8 22. Nxe8 Qxe8 23. exf5 $11) 21... Qc7 {[%emt 0:00:16]} 22. Nd5 {[%emt 0:00:02]} Qc8 {[%emt 0:00:45] [#] aiming for ...Ne5.} 23. Nb6 {[%emt 0:05:54]} (23. Nf6+ $5 Kh8 24. Nxe8 Qxe8 25. exf5 $11) 23... Qc7 {[%emt 0:13:06] Weighted Error Value: White=0.19 (very precise) /Black=0.21 (precise)} 1/2-1/2